bitfinex/quotes_SOLUSD_20250818
["timestamp","ask_amount","ask_price","bid_price","bid_amount"]
[1755476448219,0.2,190.63,190.56,26.0]
[1755476448376,0.2,190.63,190.57,39.8]
[1755476448580,0.2,190.63,190.57,40.51]
[1755476449093,0.2,190.63,190.58,0.71]
[1755476450179,0.2,190.63,190.59,0.71]
[1755476450400,0.2,190.63,190.58,18.36499107]
[1755476450601,0.2,190.63,190.59,39.76]
[1755476450904,0.2,190.63,190.6,39.74]
[1755476451305,0.2,190.63,190.58,19.07499107]
[1755476451506,0.2,190.63,190.59,39.72]
[1755476451803,0.2,190.63,190.58,19.07499107]
[1755476452004,1.32503585,190.62,190.52,26.0]
[1755476452199,0.67,190.61,190.56,26.0]
[1755476452387,1.32503585,190.6,190.56,26.0]
[1755476452579,0.67,190.6,190.56,26.0]
[1755476453503,0.2,190.63,190.57,0.71]
[1755476454086,0.2,190.63,190.58,5.2471403]
[1755476454280,0.67,190.62,190.58,5.2471403]
[1755476454617,1.32503585,190.61,190.56,26.0]
[1755476454794,0.67,190.6,190.55,31.24796641]
[1755476454981,0.67,190.59,190.55,31.24796641]
[1755476455186,0.67,190.62,190.55,31.24796641]
[1755476455400,0.67,190.62,190.55,45.07788244]
[1755476455605,0.67,190.62,190.55,44.36788244]
[1755476455989,0.65503585,190.61,190.55,39.7]
[1755476456297,0.67,190.6,190.52,44.94879277]
[1755476456486,1.32503585,190.6,190.53,0.71]
[1755476456684,1.32503585,190.62,190.53,0.71]
[1755476457514,0.67,190.61,190.53,0.71]
[1755476457706,0.85503585,190.63,190.55,26.0]
[1755476458013,0.2,190.63,190.56,40.39]
[1755476458309,0.2,190.63,190.57,5.24741564]
[1755476458511,0.2,190.63,190.57,18.36595475]
[1755476458718,0.2,190.63,190.58,0.71]
[1755476459024,0.2,190.63,190.57,18.36595475]
[1755476459190,0.87,190.63,190.57,5.24741564]
[1755476459391,1.32503585,190.62,190.57,5.24741564]
[1755476459612,1.32503585,190.62,190.55,26.0]
[1755476459613,0.67,190.61,190.56,5.24765547]
[1755476459793,0.2,190.63,190.56,5.24765547]
[1755476459794,1.32503585,190.6,190.56,5.24765547]
[1755476460205,0.67,190.6,190.56,5.24765547]
[1755476460412,0.67,190.59,190.56,5.24765547]
[1755476460786,1.32503585,190.58,190.52,0.71]
[1755476460990,1.32503585,190.58,190.48,39.40401353]
[1755476460991,1.32503585,190.58,190.5,5.24934383]
[1755476461189,1.32503585,190.58,190.5,44.88934383]
[1755476461407,0.67,190.57,190.5,5.24934383]
[1755476461693,0.65503585,190.56,190.49,5.24956562]
[1755476461998,0.65503585,190.56,190.49,5.95956562]
[1755476462390,0.65503585,190.56,190.49,19.08361412]
[1755476462695,0.65503585,190.57,190.49,19.08361412]
[1755476463213,5.24607843,190.62,190.52,26.0]
[1755476463214,0.67,190.61,190.52,26.0]
[1755476463408,0.65503585,190.61,190.53,26.71]
[1755476463795,0.65503585,190.61,190.54,0.71]
[1755476464017,1.52503585,190.63,190.54,40.35]
[1755476464191,1.52503585,190.63,190.55,0.71]
[1755476464386,1.52503585,190.63,190.56,5.24769101]
[1755476464603,0.85503585,190.63,190.57,0.71]
[1755476464910,0.2,190.63,190.57,0.71]
[1755476465092,0.85503585,190.63,190.57,0.71]
[1755476466120,0.65503585,190.62,190.57,0.71]
[1755476466320,0.2,190.63,190.58,5.2471403]
[1755476466499,1.52503585,190.63,190.58,5.2471403]
[1755476466822,0.85503585,190.63,190.58,5.9571403]
[1755476467028,0.85503585,190.63,190.58,5.2471403]
[1755476467237,0.2,190.63,190.59,0.71]
[1755476467527,0.2,190.63,190.58,18.36499107]
[1755476467705,0.87,190.63,190.58,5.2471403]
[1755476468091,0.87,190.63,190.58,5.9571403]
[1755476468490,0.2,190.63,190.59,0.71]
[1755476468693,0.2,190.63,190.6,0.71]
[1755476469145,1.32503585,190.62,190.58,5.2471403]
[1755476469423,0.67,190.61,190.58,5.2471403]
[1755476469997,0.65503585,190.62,190.58,5.2471403]
[1755476470412,0.65503585,190.62,190.57,5.24741564]
[1755476470619,0.65503585,190.62,190.57,5.95741564]
[1755476470918,1.32503585,190.62,190.57,5.95741564]
[1755476472111,0.65503585,190.62,190.58,0.71]
[1755476472506,0.65503585,190.62,190.56,26.0]
[1755476472715,0.65503585,190.62,190.57,5.24741564]
[1755476472716,1.32503585,190.62,190.57,5.24741564]
[1755476472898,15.10621557,190.61,190.56,5.24768052]
[1755476473206,1.32503585,190.6,190.55,5.9579628]
[1755476473408,15.77621557,190.59,190.53,5.24827722]
[1755476473613,0.65503585,190.58,190.53,5.24827722]
[1755476473920,1.32503585,190.58,190.53,5.24827722]
[1755476474829,0.65503585,190.58,190.54,0.71]
[1755476474998,15.77621557,190.61,190.54,0.71]
[1755476474999,15.76125142,190.59,190.54,0.71]
[1755476475515,16.45125142,190.59,190.53,5.24827722]
[1755476476027,15.76125142,190.59,190.53,5.24827722]
[1755476476201,4.1298866,190.58,190.53,5.24827722]
[1755476476537,4.78549431,190.57,190.52,5.24879277]
[1755476476739,1.34503585,190.57,190.52,5.24879277]
[1755476477335,3.44453974,190.56,190.52,5.93879277]
[1755476477522,0.65503585,190.55,190.51,31.24904073]
[1755476477831,0.69,190.55,190.51,26.0]
[1755476478141,1.34503585,190.55,190.51,26.0]
[1755476478301,3.44752292,190.54,190.51,26.0]
[1755476478503,3.44774835,190.53,190.51,26.0]
[1755476478727,1.34503585,190.55,190.51,26.0]
[1755476479035,7.93393994,190.54,190.51,26.0]
[1755476479201,7.27985385,190.53,190.49,0.72]
[1755476479399,7.93725804,190.52,190.49,0.03]
[1755476479749,7.28199033,190.51,190.49,0.03]
[1755476479900,3.44792337,190.5,190.49,0.03]
[1755476480101,1.34503585,190.52,190.49,0.03]
[1755476480313,7.29182902,190.51,190.49,0.03]
[1755476480531,1.34503585,190.52,190.49,0.03]
[1755476480532,3.45395463,190.5,190.49,0.03]
[1755476482445,23.09323726,190.5,190.49,0.03]
[1755476482622,26.93582601,190.5,190.49,0.03]
[1755476482821,27.59086186,190.5,190.48,0.03]
[1755476483044,11.13961044,190.49,190.48,0.03]
[1755476483245,13.23664109,190.49,190.48,0.03]
[1755476483452,17.07901645,190.49,190.48,0.03]
[1755476483637,36.50752127,190.49,190.48,0.03]
[1755476483836,32.18523202,190.49,190.48,0.03]
[1755476484356,36.50810558,190.49,190.48,0.03]
[1755476484728,33.31832267,190.49,190.48,0.03]
[1755476484943,37.15894633,190.49,190.48,0.03]
[1755476485142,32.83607277,190.49,190.48,0.03]
[1755476485353,32.83256691,190.49,190.48,0.03]
[1755476485580,32.83272772,190.49,190.48,0.03]
[1755476486288,28.99385699,190.49,190.48,0.03]
[1755476490766,15.10621557,190.48,190.46,0.03]
[1755476490957,62.20752926,190.47,190.46,0.03]
[1755476491159,59.06520605,190.47,190.46,0.03]
[1755476492262,64.31537668,190.47,190.46,0.03]
[1755476497059,63.50537668,190.47,190.46,0.03]
[1755476497258,60.05142205,190.47,190.46,0.03]
[1755476497682,60.74142205,190.47,190.46,0.03]
[1755476498061,193.24142205,190.47,190.46,0.03]
[1755476498261,192.5863862,190.47,190.46,0.03]
[1755476498690,191.8963862,190.47,190.46,0.03]
[1755476498991,191.8963862,190.47,190.44,0.03]
[1755476498992,157.60621557,190.46,190.44,0.03]
[1755476499285,151.70108907,190.45,190.44,0.03]
[1755476499492,15.10621557,190.44,190.43,0.03]
[1755476499794,68.45473429,190.44,190.43,1e-08]
[1755476500180,77.52568705,190.44,190.43,1e-08]
[1755476500383,73.70573197,190.44,190.43,1e-08]
[1755476500606,74.36076782,190.44,190.43,1e-08]
[1755476500814,64.36076782,190.44,190.43,1e-08]
[1755476501883,63.67076782,190.44,190.43,1e-08]
[1755476502211,60.2322491,190.44,190.43,1e-08]
[1755476502509,60.9222491,190.44,190.43,1e-08]
[1755476502802,60.2322491,190.44,190.43,1e-08]
[1755476503004,21.0122491,190.44,190.43,1e-08]
[1755476503179,61.0622491,190.44,190.43,1e-08]
[1755476503807,60.3722491,190.44,190.43,1e-08]
[1755476504505,55.12125142,190.44,190.43,0.69000001]
[1755476505405,0.65503585,190.44,190.43,0.69000001]
[1755476505588,15.10621557,190.46,190.43,0.69000001]
[1755476505786,0.65503585,190.45,190.43,0.69000001]
[1755476505982,15.10621557,190.46,190.43,0.69000001]
[1755476506306,15.10621557,190.48,190.44,5.25099768]
[1755476506508,39.32,190.5,190.45,0.72]
[1755476507224,0.65503585,190.51,190.45,0.72]
[1755476507798,39.52,190.52,190.45,0.72]
[1755476508024,0.71503585,190.52,190.47,26.0]
[1755476508225,0.71503585,190.52,190.48,5.969895]
[1755476508423,0.71503585,190.52,190.49,0.72]
[1755476508797,0.71503585,190.52,190.5,0.72]
[1755476509207,54.52621557,190.51,190.5,0.72]
[1755476509531,55.18125142,190.51,190.47,0.72]
[1755476510011,55.18125142,190.51,190.45,0.72]
[1755476510327,60.43032708,190.51,190.45,0.72]
[1755476512696,0.65503585,190.51,190.45,5.97068596]
[1755476512897,0.06,190.52,190.46,0.72]
[1755476513094,0.06,190.52,190.48,26.0]
[1755476513344,0.06,190.52,190.49,26.0]
[1755476513504,0.06,190.52,190.49,26.72]
[1755476513707,15.16621557,190.52,190.5,0.72]
[1755476513926,0.65503585,190.51,190.5,0.72]
[1755476514710,15.76125142,190.51,190.48,0.72]
[1755476514928,15.76125142,190.51,190.49,0.72]
[1755476515340,0.65503585,190.51,190.5,0.72]
[1755476515501,39.44,190.52,190.5,0.72]
[1755476515730,0.06,190.52,190.5,0.72]
[1755476516348,0.06,190.52,190.51,0.72]
[1755476516553,0.06,190.52,190.46,0.72]
[1755476516760,0.06,190.52,190.47,5.25017063]
[1755476516957,39.32,190.51,190.48,0.72]
[1755476517137,15.10621557,190.5,190.43,0.72000001]
[1755476517457,15.10621557,190.48,190.43,0.72000001]
[1755476517663,0.65503585,190.47,190.43,0.72000001]
[1755476517849,0.65503585,190.47,190.44,0.72]
[1755476518050,0.65503585,190.47,190.45,0.72]
[1755476518447,0.65503585,190.47,190.46,0.72]
[1755476518652,15.10621557,190.51,190.46,0.72]
[1755476518962,15.10621557,190.48,190.46,0.72]
[1755476519157,0.65503585,190.47,190.43,0.72000001]
[1755476520540,0.65503585,190.47,190.44,0.72]
[1755476521732,0.65503585,190.47,190.45,0.72]
[1755476521935,0.65503585,190.47,190.43,5.25119978]
[1755476522137,15.76125142,190.47,190.46,0.72]
[1755476522346,15.76125142,190.47,190.43,0.72000001]
[1755476522550,15.76125142,190.47,190.44,0.72]
[1755476523069,15.76125142,190.47,190.45,0.72]
[1755476523980,23.13370444,190.46,190.43,1e-08]
[1755476524140,15.10621557,190.44,190.43,1e-08]
[1755476524339,27.66441534,190.44,190.43,1e-08]
[1755476524544,28.38441534,190.44,190.43,1e-08]
[1755476526165,32.7072889,190.44,190.43,1e-08]
[1755476526472,32.23117775,190.44,190.42,0.03]
[1755476526795,15.10621557,190.42,190.41,0.03]
[1755476526966,61.69341766,190.42,190.41,0.03]
[1755476527955,57.84760237,190.42,190.41,0.03]
[1755476528485,58.56760237,190.42,190.41,0.03]
[1755476528651,63.81915157,190.42,190.41,0.03]
[1755476528991,57.84760237,190.42,190.41,0.03]
[1755476529147,58.50263822,190.42,190.41,0.03]
[1755476529584,19.22263822,190.42,190.41,0.03]
[1755476529888,58.46263822,190.42,190.41,0.03]
[1755476530050,54.98125142,190.42,190.41,0.75]
[1755476531060,54.98125142,190.42,190.41,0.03]
[1755476531576,0.65503585,190.46,190.41,0.75]
[1755476531794,54.34621557,190.45,190.41,6.001825]
[1755476531957,39.24,190.45,190.42,0.72]
[1755476532402,39.24,190.45,190.43,5.25127343]
[1755476532572,39.24,190.45,190.44,0.72]
[1755476532897,39.22,190.47,190.44,0.72]
[1755476533179,0.65503585,190.46,190.44,0.72]
[1755476533385,15.76125142,190.46,190.41,5.28173745]
[1755476533581,15.82621557,190.45,190.41,0.03]
[1755476533757,39.87503585,190.44,190.41,0.03]
[1755476534554,39.87503585,190.44,190.42,0.72]
[1755476534748,39.87503585,190.44,190.43,0.71]
[1755476535388,39.87503585,190.44,190.41,0.74]
[1755476535559,39.87503585,190.44,190.42,0.71]
[1755476536560,39.87503585,190.44,190.41,0.03]
[1755476537285,40.54503585,190.44,190.41,0.03]
[1755476537459,15.10621557,190.42,190.41,0.03]
[1755476537657,55.00125142,190.42,190.41,0.03]
[1755476538209,0.65503585,190.46,190.41,5.991825]
[1755476538362,0.71503585,190.49,190.42,0.71]
[1755476538568,39.24,190.48,190.42,0.71]
[1755476539676,0.71503585,190.49,190.42,0.71]
[1755476539998,0.06,190.49,190.42,0.71]
[1755476540395,0.06,190.49,190.43,5.25127343]
[1755476540695,0.06,190.46,190.44,0.71]
[1755476541281,0.06,190.49,190.46,26.0]
[1755476541486,0.06,190.49,190.47,0.71]
[1755476542077,0.06,190.48,190.47,0.71]
[1755476542585,0.06,190.48,190.47,5.96017063]
[1755476542896,0.06,190.49,190.47,5.96017063]
[1755476543087,0.06,190.49,190.48,0.71]
[1755476544273,0.06,190.49,190.48,5.959895]
[1755476544500,0.06,190.51,190.48,5.959895]
[1755476544785,1e-08,190.52,190.51,26.0]
[1755476545173,1e-08,190.52,190.51,26.71]
[1755476546074,1e-08,190.53,190.51,26.71]
[1755476546274,1e-08,190.54,190.52,5.95879277]
[1755476546489,1e-08,190.54,190.53,26.0]
[1755476546773,0.06,190.61,190.54,26.0]
[1755476547007,0.06,190.61,190.54,26.71]
[1755476547177,0.06,190.61,190.55,26.71]
[1755476547712,1e-08,190.58,190.56,0.71]
[1755476548081,1e-08,190.58,190.55,26.0]
[1755476548298,1e-08,190.58,190.57,5.95741564]
[1755476549397,0.2,190.63,190.6,26.0]
[1755476549874,0.2,190.63,190.61,0.71]
[1755476550502,0.2,190.63,190.62,5.24603924]
[1755476550703,0.2,190.63,190.62,5.95603924]
[1755476550871,0.06,190.65,190.64,26.0]
[1755476551275,0.06,190.65,190.64,26.71]
[1755476552103,0.06,190.66,190.64,26.71]
[1755476552104,0.06,190.66,190.64,31.95548887]
[1755476552285,0.06,190.66,190.65,0.71]
[1755476553110,0.06,190.68,190.65,0.71]
[1755476553311,1e-08,190.68,190.66,38.98]
[1755476553609,1e-08,190.69,190.68,26.0]
[1755476554112,1e-08,190.69,190.68,31.9543885]
[1755476554694,1e-08,190.72,190.68,45.58979861]
[1755476554894,1e-08,190.72,190.69,0.71]
[1755476555701,1e-08,190.72,190.7,44.20383848]
[1755476556107,1e-08,190.72,190.71,0.71]
[1755476556495,1e-08,190.72,190.71,39.63]
[1755476557738,1e-08,190.72,190.71,44.87356352]
[1755476558494,1e-08,190.72,190.71,44.16356352]
[1755476561824,1e-08,190.72,190.71,44.87356352]
[1755476563725,1e-08,190.72,190.71,59.97977909]
[1755476564595,1e-08,190.72,190.71,69.97977909]
[1755476566820,1e-08,190.76,190.75,26.0]
[1755476567002,1e-08,190.76,190.75,65.49]
[1755476567603,1e-08,190.76,190.75,67.589021]
[1755476567795,0.2,190.79,190.75,67.589021]
[1755476568014,0.2,190.79,190.76,0.71]
[1755476568216,0.2,190.79,190.77,39.43]
[1755476568415,1e-08,190.79,190.77,39.43]
[1755476568626,1e-08,190.79,190.78,0.71]
[1755476568806,1e-08,190.79,190.78,5.95163958]
[1755476569230,1e-08,190.79,190.78,6.47580353]
[1755476572919,1e-08,190.79,190.78,5.95163958]
[1755476573807,1e-08,190.79,190.78,44.55163958]
[1755476574431,0.71,190.87,190.81,26.0]
[1755476574733,0.71,190.87,190.78,20.44442954]
[1755476574906,0.71,190.87,190.82,26.0]
[1755476575532,0.71,190.87,190.81,26.0]
[1755476575761,0.71,190.87,190.83,5.2402662]
[1755476580535,15.76114588,190.86,190.77,13.104667]
[1755476580738,15.10621557,190.84,190.76,5.24218913]
[1755476580948,15.10621557,190.82,190.76,5.24218913]
[1755476581154,15.10621557,190.8,190.76,5.24218913]
[1755476581436,0.71,190.79,190.76,31.24218913]
[1755476581746,0.71,190.83,190.79,26.0]
[1755476581948,0.71,190.85,190.79,26.71]
[1755476582161,0.71,190.85,190.79,65.17]
[1755476582362,0.71,190.85,190.79,64.46]
[1755476583065,15.76121452,190.84,190.76,18.34766197]
[1755476583274,4.13573594,190.83,190.77,26.0]
[1755476583458,15.10621557,190.81,190.77,31.24175379]
[1755476583767,0.71,190.8,190.77,31.24175379]
[1755476583938,1.36503585,190.8,190.77,26.0]
[1755476584138,15.10621557,190.79,190.75,5.27241675]
[1755476584373,4.14365584,190.78,190.75,5.27241675]
[1755476584641,0.71,190.77,190.76,26.0]
[1755476585261,0.71,190.79,190.76,26.0]
[1755476585575,3.43811428,190.78,190.76,31.24213219]
[1755476585745,0.71,190.77,190.76,31.24213219]
[1755476586354,3.44229916,190.77,190.76,31.24213219]
[1755476586740,0.71,190.8,190.76,31.24213219]
[1755476586943,3.44250043,190.79,190.76,31.95213219]
[1755476587169,0.71,190.82,190.76,31.95213219]
[1755476587442,7.27126604,190.81,190.76,70.35213219]
[1755476587753,7.27126604,190.8,190.76,70.35213219]
[1755476588079,3.44264305,190.79,190.76,70.35213219]
[1755476588236,3.44695278,190.78,190.76,70.35213219]
[1755476588442,3.45038234,190.77,190.76,69.64213219]
[1755476588952,7.99319855,190.77,190.75,31.27243444]
[1755476589141,23.75444997,190.76,190.75,0.03]
[1755476589363,8.6482344,190.76,190.75,0.03]
[1755476589678,7.99319855,190.76,190.75,0.03]
[1755476590747,12.2507635,190.76,190.75,0.03]
[1755476591343,7.99319855,190.76,190.75,0.03]
[1755476592279,7.28319855,190.76,190.75,0.03]
[1755476592493,7.99319855,190.76,190.75,0.03]
[1755476592785,8.00751682,190.76,190.75,0.03]
[1755476593450,7.29751682,190.76,190.75,0.03]
[1755476593655,8.00751682,190.76,190.75,0.03]
[1755476594072,7.29751682,190.76,190.75,0.03]
[1755476595471,3.84713448,190.76,190.75,0.03]
[1755476596755,0.65503585,190.81,190.75,0.72]
[1755476596959,7.32807655,190.8,190.77,26.0]
[1755476597260,3.85678301,190.79,190.78,0.69]
[1755476597947,3.85678301,190.79,190.78,5.93163958]
[1755476598155,15.10621557,190.86,190.81,26.0]
[1755476598377,7.33367852,190.85,190.82,0.69]
[1755476598559,0.76,190.87,190.82,0.69]
[1755476598757,3.86135883,190.86,190.82,0.69]
[1755476598960,0.76,190.87,190.82,0.69]
[1755476599178,3.86140778,190.86,190.82,0.69]
[1755476599380,0.76,190.87,190.83,5.2402662]
[1755476599676,0.06,190.87,190.83,5.2402662]
[1755476599877,0.06,190.87,190.84,0.69]
[1755476600083,0.06,190.87,190.83,18.34093171]
[1755476600281,0.06,190.87,190.85,0.69]
[1755476600454,0.06,190.87,190.86,26.0]
[1755476600866,0.06,190.87,190.86,26.69]
[1755476601079,0.06,190.87,190.86,26.0]
[1755476601361,0.06,190.87,190.86,31.23944252]
[1755476601572,0.06,190.87,190.85,5.23967462]
[1755476601785,0.76,190.87,190.85,5.23967462]
[1755476602177,0.7,190.86,190.84,31.23996795]
[1755476602471,0.06,190.87,190.8,26.0]
[1755476602472,0.714896,190.87,190.8,26.0]
[1755476602801,0.7,190.85,190.8,28.099131]
[1755476603100,0.7,190.84,190.8,26.0]
[1755476603607,0.7,190.84,190.81,5.24081547]
[1755476603779,0.76,190.87,190.82,0.69]
[1755476603978,0.76,190.87,190.81,5.24081547]
[1755476603979,0.06,190.87,190.83,0.69]
[1755476604186,0.06,190.87,190.84,26.69]
[1755476604689,0.06,190.87,190.85,0.69]
[1755476605067,0.06,190.87,190.86,0.69]
[1755476605262,0.06,190.87,190.84,26.0]
[1755476605263,0.76,190.87,190.84,26.0]
[1755476605469,0.7,190.86,190.84,26.0]
[1755476605664,0.7,190.86,190.84,5.2398565]
[1755476605876,0.06,190.87,190.84,5.2398565]
[1755476606179,0.7,190.86,190.84,5.2398565]
[1755476606509,0.06,190.87,190.82,5.93054082]
[1755476607091,0.76,190.87,190.82,5.93054082]
[1755476607283,0.76,190.87,190.82,5.24054082]
[1755476607486,0.76,190.87,190.82,5.93054082]
[1755476608199,0.06,190.87,190.82,5.93054082]
[1755476608401,0.06,190.87,190.83,0.69]
[1755476608781,0.06,190.87,190.84,15.166216]
[1755476609115,0.06,190.87,190.84,15.856216]
[1755476609281,0.06,190.87,190.84,15.166216]
[1755476609482,0.06,190.87,190.85,0.69]
[1755476609781,0.06,190.87,190.84,15.856216]
[1755476610375,0.06,190.87,190.85,5.23971705]
[1755476610586,15.10621557,190.85,190.82,26.0]
[1755476610780,0.7,190.84,190.81,5.24057155]
[1755476611000,0.65493031,190.86,190.81,5.24057155]
[1755476611208,15.80621557,190.85,190.81,31.24057155]
[1755476615696,0.7,190.84,190.81,31.24057155]
[1755476616030,15.80621557,190.83,190.79,0.03]
[1755476616203,15.10621557,190.81,190.79,0.03]
[1755476616408,15.80621557,190.81,190.79,0.03]
[1755476616595,15.80621557,190.81,190.79,15.774312]
[1755476616791,15.80621557,190.81,190.79,0.03]
[1755476617446,0.65503585,190.8,190.79,0.03]
[1755476617727,16.46125142,190.8,190.79,0.03]
[1755476618802,15.76125142,190.8,190.79,0.03]
[1755476619603,15.10621557,190.84,190.79,0.72]
[1755476619810,15.10621557,190.82,190.79,0.72]
[1755476620017,15.10621557,190.82,190.8,0.69]
[1755476620419,15.10621557,190.8,190.79,0.03]
[1755476620814,15.80621557,190.8,190.79,0.03]
[1755476622330,16.46125142,190.8,190.79,0.03]
[1755476623033,15.10621557,190.82,190.79,0.03]
[1755476623229,15.76125142,190.82,190.79,0.72]
[1755476623433,15.76125142,190.82,190.79,0.03]
[1755476623930,15.10621557,190.8,190.79,0.03]
[1755476624118,15.76125142,190.8,190.79,0.03]
[1755476624432,16.46125142,190.8,190.79,0.03]
[1755476625226,15.80621557,190.8,190.79,0.03]
[1755476625437,16.46125142,190.8,190.79,0.03]
[1755476630254,15.76125142,190.8,190.79,0.03]
[1755476630425,15.10621557,190.8,190.79,0.03]
[1755476630625,15.10621557,190.83,190.79,0.69]
[1755476632238,15.10621557,190.83,190.8,0.66]
[1755476632431,15.10621557,190.83,190.79,0.03]
[1755476632636,15.10621557,190.83,190.81,0.66]
[1755476632823,0.65493031,190.86,190.82,0.66]
[1755476633026,15.10621557,190.86,190.83,0.66]
[1755476633231,15.10621557,190.86,190.79,0.03]
[1755476633433,16.47114588,190.86,190.79,0.69]
[1755476633750,15.10621557,190.84,190.79,0.03]
[1755476634050,15.10621557,190.84,190.79,0.69]
[1755476634426,15.10621557,190.84,190.81,5.24081547]
[1755476634857,15.10621557,190.84,190.81,5.90081547]
[1755476635254,15.10621557,190.84,190.81,5.24081547]
[1755476635428,15.10621557,190.86,190.82,0.66]
[1755476635738,15.10621557,190.86,190.83,0.66]
[1755476636258,15.10621557,190.86,190.81,5.90081547]
[1755476636463,15.10621557,190.86,190.83,5.2402662]
[1755476636674,0.06,190.87,190.84,0.66]
[1755476636834,0.06,190.87,190.85,0.66]
[1755476637032,0.06,190.87,190.86,26.0]
[1755476637770,0.06,190.87,190.86,0.66]
[1755476638261,0.06,190.87,190.83,18.34093171]
[1755476638471,0.06,190.87,190.84,0.66]
[1755476638637,0.06,190.87,190.86,26.0]
[1755476639140,0.06,190.87,190.86,26.66]
[1755476639467,0.06,190.87,190.86,26.0]
[1755476640540,0.06,190.87,190.86,26.66]
[1755476640740,0.06,190.87,190.86,31.89944252]
[1755476641448,0.06,190.87,190.86,33.99802252]
[1755476642453,0.06,190.87,190.86,33.33802252]
[1755476642661,0.06,190.87,190.86,31.23944252]
[1755476643053,0.06,190.87,190.86,33.33802352]
[1755476643456,0.06,190.87,190.86,33.99802352]
[1755476644545,0.06,190.87,190.86,31.89944252]
[1755476644748,0.06,190.87,190.86,33.99802352]
[1755476645284,0.06,190.88,190.86,33.99802352]
[1755476645450,0.06,190.89,190.87,0.66]
[1755476645649,1e-08,190.89,190.87,0.66]
[1755476647179,1e-08,190.89,190.88,7.33692454]
[1755476647558,1e-08,190.89,190.88,7.99692454]
[1755476647863,1e-08,190.89,190.88,7.33692454]
[1755476648194,1e-08,190.89,190.88,33.33692454]
[1755476648568,1e-08,190.89,190.88,33.99692454]
[1755476651372,1e-08,190.89,190.88,7.99692454]
[1755476654217,1e-08,190.89,190.88,33.33692454]
[1755476654365,1e-08,190.89,190.88,7.33692454]
[1755476654680,1e-08,190.89,190.88,33.33692454]
[1755476655802,1e-08,190.89,190.88,7.33692454]
[1755476656006,1e-08,190.89,190.88,33.33692454]
[1755476656500,1e-08,190.89,190.86,117.64]
[1755476656501,1e-08,190.89,190.86,5.23918318]
[1755476656709,0.65000001,190.89,190.86,5.23918318]
[1755476657005,0.65000001,190.89,190.86,31.23918318]
[1755476657570,1e-08,190.89,190.86,31.23918318]
[1755476660307,0.65000001,190.89,190.86,31.23918318]
[1755476661794,1e-08,190.89,190.86,31.23918318]
[1755476661989,1e-08,190.89,190.86,31.91918318]
[1755476662216,0.65,190.88,190.85,7.33840768]
[1755476662427,0.65,190.87,190.82,5.24054082]
[1755476662731,0.65,190.87,190.85,26.0]
[1755476663083,16.41114588,190.86,190.82,43.46054082]
[1755476663299,0.65,190.85,190.83,2.098911]
[1755476663498,15.76114588,190.86,190.81,38.23]
[1755476663688,0.65,190.84,190.81,0.03]
[1755476664089,0.65,190.83,190.81,0.03]
[1755476664286,15.10621557,190.84,190.81,0.03]
[1755476665218,15.10621557,190.84,190.81,0.71]
[1755476665393,15.10621557,190.84,190.81,0.03]
[1755476665600,0.65,190.83,190.81,0.03]
[1755476667336,0.65,190.82,190.81,0.03]
[1755476668150,15.75621557,190.82,190.81,0.03]
[1755476671409,1.30496463,190.85,190.81,0.03]
[1755476672008,15.10621557,190.83,190.81,0.03]
[1755476672445,15.10621557,190.84,190.81,0.71]
[1755476672965,1.304896,190.87,190.81,0.71]